bitfinex/quotes_BTCUSD_20250410
["timestamp","ask_amount","ask_price","bid_price","bid_amount"]
[1744301595938,0.12,78957.0,78956.0,0.0001]
[1744301596355,0.12,78957.0,78956.0,0.12700758]
[1744301596518,0.12,78957.0,78956.0,0.38031258]
[1744301596717,0.12,78957.0,78956.0,0.12700758]
[1744301597141,0.12,78957.0,78956.0,0.13967258]
[1744301597538,0.12,78957.0,78956.0,0.13977258]
[1744301599259,0.12,78957.0,78956.0,0.12710758]
[1744301599464,0.12,78957.0,78956.0,0.13977258]
[1744301600448,0.12,78957.0,78956.0,0.47977258]
[1744301600656,0.012663,78967.0,78959.0,0.012664]
[1744301601013,0.17,78967.0,78962.0,0.253284]
[1744301601192,0.17,78967.0,78963.0,0.12690758]
[1744301601371,0.17,78967.0,78966.0,0.012663]
[1744301601571,0.17,78967.0,78966.0,0.13957058]
[1744301601802,0.17,78967.0,78966.0,0.49664404]
[1744301602003,0.012658,78999.0,78990.0,0.012659]
[1744301602181,0.012658,78999.0,78991.0,0.12690758]
[1744301602182,0.00042321,78997.0,78991.0,0.12690758]
[1744301602387,0.01266,78984.0,78975.0,0.352662]
[1744301602571,0.02,78984.0,78982.0,0.25322]
[1744301602776,0.02,78984.0,78983.0,0.14209959]
[1744301602995,0.02,78984.0,78983.0,0.13956758]
[1744301604589,0.02,78984.0,78983.0,0.47956758]
[1744301604847,0.02,78984.0,78983.0,0.49410843]
[1744301605274,0.02,78984.0,78983.0,0.51750904]
[1744301608033,0.285875,78984.0,78983.0,0.15030819]
[1744301608238,0.285875,78984.0,78983.0,0.02340061]
[1744301608470,0.253261,78970.0,78962.0,0.012664]
[1744301608668,0.363261,78970.0,78964.0,0.34]
[1744301608887,0.012663,78969.0,78965.0,0.12690758]
[1744301609091,0.07,78969.0,78965.0,0.12690758]
[1744301609250,0.265934,78967.0,78965.0,0.12690758]
[1744301609460,0.012663,78966.0,78965.0,0.12690758]
[1744301609652,0.192663,78966.0,78965.0,0.12690758]
[1744301609857,0.253292,78960.0,78958.0,1.30376]
[1744301610104,0.283292,78960.0,78959.0,0.12690758]
[1744301610666,0.03,78960.0,78959.0,0.12690758]
[1744301611662,0.03,78960.0,78956.0,0.0002]
[1744301611663,0.29596,78960.0,78956.0,0.0002]
[1744301611803,0.265967,78957.0,78956.0,0.12710758]
[1744301612020,0.17,78957.0,78956.0,0.12710758]
[1744301612223,0.17,78957.0,78956.0,0.46710758]
[1744301612670,0.17,78957.0,78956.0,0.12710758]
[1744301612868,0.17,78957.0,78956.0,0.0002]
[1744301612869,0.182665,78957.0,78956.0,0.0002]
[1744301615190,0.26598,78953.0,78952.0,1e-06]
[1744301615363,0.45598,78953.0,78952.0,0.00012835]
[1744301618058,0.253329,78949.0,78940.0,0.23548435]
[1744301618268,0.16,78949.0,78948.0,0.012666]
[1744301618436,0.16,78949.0,78948.0,0.38023858]
[1744301618639,0.16,78949.0,78948.0,0.12690758]
[1744301618886,0.16,78949.0,78934.0,0.013003]
[1744301618887,0.012666,78947.0,78934.0,0.013003]
[1744301618998,0.253331,78948.0,78939.0,0.606025]
[1744301618999,0.253338,78946.0,78939.0,0.606025]
[1744301619199,0.012667,78945.0,78939.0,0.12690758]
[1744301619426,0.266031,78938.0,78934.0,0.000335]
[1744301619642,0.456031,78938.0,78934.0,0.000335]
[1744301619811,0.19,78938.0,78934.0,0.000335]
[1744301619989,0.443363,78938.0,78934.0,0.000335]
[1744301620189,0.456031,78938.0,78934.0,0.000335]
[1744301623168,0.456031,78938.0,78937.0,0.02390289]
[1744301623553,0.456031,78938.0,78934.0,0.000335]
[1744301623554,1.00190665,78938.0,78934.0,0.000335]
[1744301623754,0.35267,78922.0,78917.0,1e-08]
[1744301623966,0.266098,78918.0,78917.0,1e-08]
[1744301624202,0.17,78918.0,78917.0,1e-08]
[1744301624785,0.17,78918.0,78917.0,0.01267101]
[1744301625499,0.17,78918.0,78917.0,1e-08]
[1744301626221,0.17,78918.0,78917.0,0.13957859]
[1744301626430,0.17,78918.0,78917.0,0.12690759]
[1744301627225,0.182671,78918.0,78917.0,1e-08]
[1744301627806,0.582671,78918.0,78917.0,1e-08]
[1744301628007,0.630171,78918.0,78917.0,1e-08]
[1744301628286,0.630171,78918.0,78887.0,0.266537]
[1744301628287,0.012672,78910.0,78887.0,0.000336]
[1744301628478,0.91303258,78910.0,78909.0,8e-07]
[1744301629108,1.186125,78910.0,78909.0,8e-07]
[1744301630003,0.846125,78910.0,78909.0,8e-07]
[1744301630799,0.97303258,78910.0,78909.0,8e-07]
[1744301631011,1.39213258,78910.0,78909.0,8e-07]
[1744301631985,1.85890823,78910.0,78909.0,8e-07]
[1744301632688,1.73213258,78910.0,78909.0,8e-07]
[1744301632964,1.605225,78910.0,78909.0,8e-07]
[1744301634053,1.265225,78910.0,78909.0,8e-07]
[1744301634439,0.865225,78910.0,78909.0,8e-07]
[1744301635424,0.99213258,78910.0,78909.0,8e-07]
[1744301635627,0.446125,78910.0,78909.0,8e-07]
[1744301636443,0.57303258,78910.0,78909.0,8e-07]
[1744301637262,0.57303258,78910.0,78891.0,0.002]
[1744301637263,0.91303258,78910.0,78905.0,6e-07]
[1744301637540,0.606139,78906.0,78905.0,8.6e-07]
[1744301637775,1.195239,78906.0,78905.0,8.6e-07]
[1744301638363,1.182566,78906.0,78905.0,8.6e-07]
[1744301638767,1.195239,78906.0,78905.0,8.6e-07]
[1744301638973,0.855239,78906.0,78905.0,8.6e-07]
[1744301639785,0.436139,78906.0,78905.0,8.6e-07]
[1744301641787,0.48711275,78906.0,78905.0,8.6e-07]
[1744301641988,0.266186,78892.0,78891.0,8.6e-07]
[1744301642162,0.474186,78892.0,78891.0,8.6e-07]
[1744301642381,0.474186,78892.0,78887.0,8.6e-07]
[1744301642382,0.313899,78888.0,78887.0,8.6e-07]
[1744301642671,0.313899,78888.0,78885.0,7.6e-07]
[1744301642672,0.266206,78886.0,78885.0,7.6e-07]
[1744301642852,0.56311358,78886.0,78885.0,7.6e-07]
[1744301643050,0.90311358,78886.0,78885.0,7.6e-07]
[1744301643254,0.91279965,78886.0,78885.0,7.6e-07]
[1744301643632,0.78589207,78886.0,78885.0,7.6e-07]
[1744301644273,0.91279965,78886.0,78885.0,7.6e-07]
[1744301644484,1.0395753,78886.0,78885.0,7.6e-07]
[1744301644632,1.05411615,78886.0,78885.0,7.6e-07]
[1744301644836,1.05411615,78886.0,78861.0,0.002]
[1744301644837,0.266284,78863.0,78862.0,3.6e-07]
[1744301645038,0.56319158,78863.0,78861.0,3.6e-07]
[1744301645265,0.13958758,78862.0,78861.0,3.6e-07]
[1744301645477,0.37538758,78862.0,78861.0,3.6e-07]
[1744301645678,0.39806144,78862.0,78861.0,3.6e-07]
[1744301645858,0.40778083,78862.0,78861.0,3.6e-07]
[1744301646056,0.67115386,78862.0,78861.0,3.6e-07]
[1744301646279,0.19,78862.0,78861.0,0.00042477]
[1744301646440,0.19,78862.0,78861.0,0.38094235]
[1744301646643,0.19,78862.0,78861.0,0.39362235]
[1744301648315,0.19,78862.0,78861.0,0.00042477]
[1744301648467,0.19,78862.0,78861.0,0.14011235]
[1744301651217,0.19,78862.0,78861.0,0.48011235]
[1744301654700,0.19,78862.0,78861.0,0.12743235]
[1744301654904,0.456287,78862.0,78861.0,0.12743235]
[1744301655302,0.456287,78862.0,78861.0,0.00052477]
[1744301655734,0.4790646,78862.0,78861.0,0.00052477]
[1744301659100,0.4790646,78862.0,78858.0,0.000248]
[1744301659101,0.266297,78859.0,78858.0,7.7e-07]
[1744301659312,0.266297,78859.0,78858.0,0.00012773]
[1744301659313,0.92320458,78859.0,78858.0,0.00012773]
[1744301659924,0.8190746,78859.0,78858.0,0.00012773]
[1744301660422,1.2190746,78859.0,78858.0,0.00012773]
[1744301661183,0.8790746,78859.0,78858.0,0.00012773]
[1744301664968,0.856297,78859.0,78858.0,0.00012773]
[1744301666544,0.856297,78859.0,78858.0,0.00132773]
[1744301668259,1.32320458,78859.0,78858.0,7.3e-07]
[1744301668887,1.00908229,78859.0,78858.0,7.3e-07]
[1744301669121,1.27537929,78859.0,78858.0,7.3e-07]
[1744301669409,0.79393086,78859.0,78858.0,7.3e-07]
[1744301669613,0.39393086,78859.0,78858.0,7.3e-07]
[1744301670167,0.97030081,78859.0,78858.0,7.3e-07]
[1744301670357,0.87537929,78859.0,78858.0,7.3e-07]
[1744301670562,0.73393086,78859.0,78858.0,7.3e-07]
[1744301671015,0.87537929,78859.0,78858.0,7.3e-07]
[1744301672372,0.86083844,78859.0,78858.0,7.3e-07]
[1744301672579,0.87537929,78859.0,78858.0,7.3e-07]
[1744301673206,0.92167929,78859.0,78858.0,7.3e-07]
[1744301673546,0.266324,78851.0,78850.0,7.3e-07]
[1744301673862,0.92323158,78851.0,78850.0,7.3e-07]
[1744301674470,0.606334,78848.0,78847.0,3e-08]
[1744301674648,0.92324158,78848.0,78847.0,3e-08]
[1744301675250,0.98508243,78848.0,78847.0,3e-08]
[1744301675446,0.97054158,78848.0,78847.0,3e-08]
[1744301675661,0.843634,78848.0,78847.0,3e-08]
[1744301675863,0.796334,78848.0,78847.0,3e-08]
[1744301677272,0.80601943,78848.0,78847.0,3e-08]
[1744301678035,0.46601943,78848.0,78847.0,3e-08]
[1744301678573,0.456334,78848.0,78847.0,3e-08]
[1744301679775,0.58324158,78848.0,78847.0,3e-08]
[1744301680610,0.92324158,78848.0,78847.0,3e-08]
[1744301680812,0.93778243,78848.0,78847.0,3e-08]
[1744301681288,0.34,78838.0,78830.0,1.3e-07]
[1744301681488,0.266392,78831.0,78830.0,1.3e-07]
[1744301681659,0.446392,78831.0,78830.0,1.3e-07]
[1744301681934,0.446392,78831.0,78815.0,4.3e-07]
[1744301681935,0.25372,78827.0,78815.0,4.3e-07]
[1744301682109,0.266442,78816.0,78815.0,4.3e-07]
[1744301682337,0.266466,78809.0,78808.0,6.3e-07]
[1744301682549,0.55337358,78809.0,78808.0,6.3e-07]
[1744301682725,0.9175399,78809.0,78808.0,6.3e-07]
[1744301682864,0.90299905,78809.0,78808.0,6.3e-07]
[1744301683068,1.166466,78809.0,78808.0,6.3e-07]
[1744301683464,0.426466,78809.0,78808.0,6.3e-07]
[1744301685121,0.172688,78809.0,78808.0,6.3e-07]
[1744301688258,0.426466,78809.0,78808.0,6.3e-07]
[1744301688702,0.16,78809.0,78808.0,6.3e-07]
[1744301688914,0.16,78809.0,78808.0,0.39337821]
[1744301689922,0.16,78809.0,78808.0,0.73337821]
[1744301690127,0.16,78809.0,78808.0,0.79621906]
[1744301690330,0.16,78809.0,78808.0,1.08217906]
[1744301690724,0.16,78809.0,78808.0,1.09521824]
[1744301690938,0.1132,78809.0,78808.0,1.14341824]
[1744301691183,0.00012665,78816.0,78815.0,0.606445]
[1744301691499,0.01012665,78816.0,78815.0,0.46690758]
[1744301691635,0.01012665,78816.0,78815.0,0.47959458]
[1744301692972,0.26388165,78816.0,78815.0,0.12690758]
[1744301693174,0.27656865,78816.0,78815.0,0.12690758]
[1744301693543,0.01012665,78816.0,78815.0,0.12690758]
[1744301694181,0.01012665,78816.0,78815.0,0.48213208]
[1744301694380,0.01012665,78816.0,78815.0,0.47959458]
[1744301696193,0.01012665,78816.0,78815.0,0.49413543]
[1744301696432,0.01012665,78816.0,78815.0,0.47959458]
[1744301696879,0.01012665,78816.0,78815.0,0.74789343]
[1744301697440,0.00012665,78816.0,78815.0,0.74789343]
[1744301699901,0.00012665,78816.0,78815.0,0.78730605]
[1744301700347,0.012686,78827.0,78815.0,0.12690758]
[1744301700481,0.012688,78814.0,78808.0,6.3e-07]
[1744301700687,0.13,78814.0,78809.0,0.12690758]
[1744301700901,0.13,78814.0,78813.0,0.266453]
[1744301701099,0.13,78814.0,78813.0,0.39336058]
[1744301701647,0.13,78814.0,78813.0,0.73336058]
[1744301702050,0.13,78814.0,78813.0,0.73378473]
[1744301702422,0.13,78814.0,78813.0,0.46733173]
[1744301702635,0.142688,78814.0,78813.0,0.00042415]
[1744301702821,0.39645,78814.0,78813.0,0.00042415]
[1744301703022,0.178,78814.0,78813.0,0.00042415]
[1744301703223,0.44445,78814.0,78813.0,0.00042415]
[1744301704005,0.431762,78814.0,78813.0,0.00042415]
[1744301704198,0.44445,78814.0,78813.0,0.00042415]
[1744301705086,0.178,78814.0,78813.0,0.39378473]
[1744301705498,0.178,78814.0,78813.0,0.12733173]
[1744301705957,0.13,78814.0,78813.0,0.39378473]
[1744301706279,0.383762,78814.0,78813.0,0.12733173]
[1744301706475,0.39645,78814.0,78813.0,0.00042415]
[1744301706913,0.39645,78814.0,78808.0,6.3e-07]
[1744301706914,0.266466,78809.0,78808.0,6.3e-07]
[1744301707113,0.559866,78809.0,78808.0,6.3e-07]
[1744301707670,0.70131443,78809.0,78808.0,6.3e-07]
[1744301707869,0.31379,78802.0,78801.0,0.002]
[1744301708069,0.01269,78801.0,78781.0,0.0001682]
[1744301708258,0.77689758,78801.0,78781.0,0.0001682]
[1744301708400,1.13143843,78801.0,78781.0,0.0001682]
[1744301708600,0.313837,78788.0,78781.0,0.0001682]
[1744301708826,1.04984458,78788.0,78781.0,0.0001682]
[1744301709393,1.05934257,78788.0,78781.0,0.0001682]
[1744301709598,0.2373,78788.0,78787.0,0.14259958]
[1744301709960,0.19042467,78788.0,78787.0,0.39644758]
[1744301710294,0.01042467,78788.0,78787.0,0.39644758]
[1744301710491,0.01042467,78788.0,78787.0,0.12990758]
[1744301711151,0.01042467,78788.0,78787.0,0.003]
[1744301711352,0.02311667,78788.0,78787.0,0.003]
[1744301711771,0.11143684,78788.0,78787.0,0.003]
[1744301712003,0.23834442,78788.0,78787.0,0.003]
[1744301712505,0.266554,78783.0,78781.0,0.0001682]
[1744301712738,0.65886158,78783.0,78781.0,0.0001682]
[1744301713342,0.67340243,78783.0,78781.0,0.0001682]
[1744301713545,0.67340243,78783.0,78776.0,2e-07]
[1744301713546,0.606575,78777.0,78776.0,2e-07]
[1744301713717,0.606575,78777.0,78752.0,8e-05]
[1744301713718,0.266628,78761.0,78760.0,7e-07]
[1744301713919,1.47313155,78761.0,78760.0,7e-07]
[1744301714280,1.33168312,78761.0,78760.0,7e-07]
[1744301714527,1.308928,78761.0,78760.0,7e-07]
[1744301714903,1.30935241,78761.0,78760.0,7e-07]
[1744301715108,1.70935241,78761.0,78760.0,7e-07]
[1744301715307,1.83625999,78761.0,78760.0,7e-07]
[1744301715824,0.266645,78756.0,78755.0,0.0001682]
[1744301716030,0.456645,78756.0,78755.0,0.0001682]
[1744301716404,0.15783194,78756.0,78755.0,0.0001682]
[1744301716644,0.55138452,78756.0,78755.0,0.0001682]
[1744301717017,0.55138452,78756.0,78752.0,8e-05]
[1744301717018,0.266655,78753.0,78752.0,8e-05]
[1744301717223,0.253994,78742.0,78741.0,0.002]
[1744301717431,0.352699,78741.0,78740.0,0.0006]
[1744301717637,0.352699,78741.0,78725.0,0.17204503]
[1744301717638,0.012701,78731.0,78725.0,0.17204503]
[1744301717840,0.55363758,78731.0,78725.0,0.17204503]
[1744301718246,0.42673,78731.0,78725.0,0.17204503]
[1744301718819,0.42715415,78731.0,78725.0,0.17204503]
[1744301719222,0.68083738,78731.0,78725.0,0.17204503]
[1744301719538,0.55406173,78731.0,78725.0,0.17204503]
[1744301720063,0.60106173,78731.0,78725.0,0.17204503]
[1744301720261,0.94106173,78731.0,78725.0,0.17204503]
[1744301720461,0.606747,78726.0,78725.0,0.17204503]
[1744301720661,1.49812314,78726.0,78725.0,0.17204503]
[1744301720863,1.76598414,78726.0,78725.0,3e-08]
[1744301721064,1.271247,78726.0,78725.0,3e-08]
[1744301721270,1.41269543,78726.0,78725.0,3e-08]
[1744301721472,0.352703,78720.0,78719.0,0.19837632]
[1744301721674,0.352703,78720.0,78708.0,0.28937625]
[1744301721675,0.266805,78709.0,78708.0,0.0001676]
[1744301721860,0.426805,78709.0,78708.0,0.0001676]
[1744301722240,0.473105,78709.0,78708.0,0.0001676]
[1744301722440,0.60001258,78709.0,78708.0,0.0001676]
[1744301722666,0.94001258,78709.0,78708.0,0.0001676]
[1744301722868,0.95284356,78709.0,78708.0,0.0001676]
[1744301723265,1.37194356,78709.0,78708.0,0.0001676]
[1744301723476,1.38648441,78709.0,78708.0,0.0001676]
[1744301723873,1.39577579,78709.0,78708.0,0.0001676]
[1744301724077,1.52255144,78709.0,78708.0,6e-07]
[1744301724255,0.34,78700.0,78687.0,0.0120333]
[1744301724458,0.62138285,78698.0,78687.0,0.0120333]
[1744301724661,0.93829043,78698.0,78687.0,0.0120333]
[1744301724859,1.33829043,78698.0,78687.0,0.0120333]
[1744301725353,0.266876,78688.0,78687.0,0.0120333]
[1744301725561,0.9933072,78688.0,78687.0,0.0120333]
[1744301725921,1.54308171,78688.0,78687.0,3e-07]
[1744301726145,1.54308171,78688.0,78670.0,0.0001]
[1744301726146,0.266934,78671.0,78670.0,0.0001]
[1744301726350,0.912634,78671.0,78670.0,0.0001]
[1744301726473,0.92240369,78671.0,78670.0,0.0001]
[1744301727913,0.912634,78671.0,78670.0,0.0001]
[1744301728114,0.658411,78671.0,78670.0,0.0001]
[1744301728539,1.058411,78671.0,78670.0,0.0001]
[1744301728899,0.658411,78671.0,78670.0,0.0001]
[1744301729105,0.18,78671.0,78670.0,0.012811]
[1744301729310,0.18,78671.0,78670.0,0.47971858]
[1744301729529,0.00042362,78688.0,78687.0,0.266879]
[1744301729754,0.19042362,78688.0,78687.0,0.39378658]
[1744301729947,0.00042362,78688.0,78687.0,0.39378658]
[1744301730142,0.01042362,78688.0,78687.0,0.39378658]
[1744301730920,0.01,78704.0,78698.0,0.266841]
[1744301731123,0.27,78720.0,78707.0,0.012705]
[1744301731366,0.012706,78702.0,78698.0,0.00012665]
[1744301731597,0.16,78702.0,78699.0,0.38103658]
[1744301731753,0.16,78702.0,78700.0,0.254126]
[1744301731964,0.16,78702.0,78701.0,0.13961358]
[1744301732200,0.16,78702.0,78701.0,0.12690758]
[1744301732421,0.16,78702.0,78701.0,0.13961358]
[1744301732846,0.16,78702.0,78701.0,0.47961358]
[1744301732991,0.16,78702.0,78701.0,1.80259443]
[1744301733171,0.16,78702.0,78701.0,1.78805358]
[1744301733379,0.16,78702.0,78701.0,1.44805358]
[1744301733754,0.00937013,78741.0,78701.0,1.78988843]
[1744301733960,0.0127,78739.0,78724.0,0.012702]
[1744301734158,0.0127,78736.0,78726.0,0.254044]
[1744301734394,0.19,78736.0,78735.0,0.0127]
[1744301734633,0.19,78736.0,78735.0,0.13960758]
[1744301735097,0.19,78736.0,78735.0,0.12690758]
[1744301735316,0.19,78736.0,78735.0,0.13973423]
[1744301736265,0.2027,78736.0,78735.0,0.12703423]
[1744301736469,0.19,78736.0,78735.0,0.00012665]
[1744301736706,0.19,78736.0,78735.0,0.12703423]
[1744301736911,0.19,78736.0,78735.0,0.00012665]
[1744301736912,0.2027,78736.0,78735.0,0.00012665]
[1744301737237,0.19,78736.0,78735.0,0.00012665]
[1744301737549,1.319434,78776.0,78739.0,0.0127]
[1744301737753,0.253986,78745.0,78740.0,0.12690758]
[1744301737955,0.17,78745.0,78744.0,0.266686]
[1744301738162,0.17,78745.0,78744.0,0.39359358]
[1744301738613,0.17,78745.0,78744.0,0.67739358]
[1744301738782,0.17,78745.0,78744.0,1.01739358]
[1744301738983,0.045,78779.0,78744.0,1.01739358]
[1744301738984,0.045,78779.0,78776.0,0.012694]
[1744301739254,0.01277849,78793.0,78776.0,0.13960158]
[1744301739255,0.1703368,78777.0,78776.0,0.13960158]
[1744301739460,0.1703368,78777.0,78776.0,0.12690758]
[1744301739978,0.1703368,78777.0,78770.0,0.2838]
[1744301739979,0.253897,78772.0,78770.0,0.2838]
[1744301740185,0.17,78772.0,78770.0,0.2838]
[1744301740477,0.436593,78772.0,78753.0,0.253956]
[1744301740653,0.266597,78771.0,78763.0,0.012696]
[1744301740826,0.19,78771.0,78764.0,0.12690758]
[1744301741006,0.19,78771.0,78770.0,0.012695]
[1744301741355,0.19,78771.0,78770.0,0.12690758]
[1744301741656,0.19,78771.0,78770.0,0.1421415]
[1744301741811,0.456595,78771.0,78770.0,0.12690758]
[1744301742009,0.19,78771.0,78770.0,0.12690758]
[1744301742880,0.19,78771.0,78770.0,0.39350558]
[1744301743093,0.19,78771.0,78770.0,0.39360558]
[1744301744426,0.19,78771.0,78770.0,0.12700758]
[1744301745639,0.19,78771.0,78770.0,0.13970258]
[1744301745773,0.19,78771.0,78770.0,0.12700758]
[1744301746182,0.202695,78771.0,78770.0,0.12700758]
[1744301746893,0.19,78771.0,78770.0,0.12700758]
[1744301747139,0.19,78771.0,78770.0,0.13970258]
[1744301747352,0.19,78771.0,78770.0,0.49424343]
[1744301747557,0.00076095,78777.0,78776.0,0.266578]
[1744301747762,0.02076095,78777.0,78776.0,0.39348558]
[1744301748410,0.02076095,78777.0,78776.0,0.13960158]
[1744301748826,0.02076095,78777.0,78775.0,0.253885]
[1744301748827,0.012694,78772.0,78770.0,0.0001]
[1744301749029,0.18,78772.0,78771.0,0.12690758]
[1744301749371,0.433897,78772.0,78770.0,0.0001]
[1744301749571,0.18,78772.0,78771.0,0.12690758]
[1744301749731,0.18,78772.0,78771.0,0.13960258]
[1744301750408,0.03,78772.0,78771.0,0.39349958]
[1744301751706,0.03,78772.0,78771.0,0.12690758]
[1744301751887,0.025,78772.0,78771.0,0.12690758]
[1744301752090,0.025,78772.0,78771.0,0.14214133]
[1744301752282,0.025,78772.0,78771.0,0.13960258]
[1744301752695,0.012695,78771.0,78770.0,0.0001]
[1744301752888,0.426595,78771.0,78770.0,0.0001]
[1744301753057,0.16,78771.0,78770.0,0.0001]
[1744301753251,0.16,78771.0,78770.0,0.266698]
[1744301753531,0.16,78771.0,78770.0,0.39360558]
[1744301753967,0.002,78799.0,78786.0,0.012692]
[1744301754170,0.2398,78797.0,78792.0,0.012691]
[1744301754376,0.2398,78797.0,78795.0,0.253822]
[1744301754574,0.2398,78797.0,78796.0,0.38072658]
[1744301754776,0.2398,78797.0,78796.0,0.12690758]
[1744301754971,0.18670531,78797.0,78796.0,0.39341658]
[1744301755576,0.18670531,78797.0,78796.0,0.12703423]
[1744301755779,0.19939531,78797.0,78796.0,0.00012665]
[1744301756180,0.29429531,78797.0,78796.0,0.00012665]
[1744301756588,0.63429531,78797.0,78796.0,0.00012665]
[1744301756789,0.266588,78774.0,78768.0,0.2836]
[1744301756993,0.18670531,78774.0,78773.0,0.012694]
[1744301757212,0.18670531,78774.0,78773.0,0.12690758]
[1744301757213,0.19939931,78774.0,78773.0,0.12690758]
[1744301757791,0.266595,78771.0,78770.0,0.0001]
[1744301757987,0.436595,78771.0,78770.0,0.0001]
[1744301758819,0.17,78771.0,78770.0,0.0001]
[1744301759026,0.17012716,78771.0,78770.0,0.12700758]
[1744301759228,0.18282216,78771.0,78770.0,0.0001]
[1744301760864,0.18282216,78771.0,78741.0,0.2836]
[1744301760865,0.012699,78745.0,78741.0,0.2836]
[1744301761019,0.0493,78770.0,78741.0,0.2836]
[1744301761020,0.28,78761.0,78759.0,0.012696]
[1744301761220,0.2,78761.0,78760.0,0.39353858]
[1744301761660,0.2,78761.0,78760.0,0.12690758]
[1744301761911,0.2,78761.0,78760.0,0.38084358]
[1744301762044,0.2,78761.0,78760.0,0.39353958]
[1744301762346,0.20012714,78761.0,78760.0,0.39353958]
[1744301763184,0.20012714,78761.0,78756.0,0.253948]
[1744301763185,0.012697,78754.0,78747.0,0.012698]
[1744301763395,0.012697,78753.0,78748.0,0.12690758]
[1744301763593,0.012697,78753.0,78741.0,0.2836]
[1744301763594,0.266693,78742.0,78741.0,0.2836]
[1744301763796,0.17,78742.0,78741.0,0.42320658]
[1744301765270,0.17,78742.0,78741.0,0.41050758]
[1744301765460,0.17,78742.0,78741.0,0.42320658]
[1744301765879,0.266713,78736.0,78726.0,0.012802]
[1744301766098,0.266713,78736.0,78726.0,0.0001]
[1744301766099,0.47952138,78736.0,78726.0,0.0001]
[1744301766230,0.21280838,78736.0,78728.0,0.012701]
[1744301766450,0.22550838,78736.0,78726.0,0.0001]
[1744301767256,0.22563545,78736.0,78726.0,0.0001]
[1744301767669,0.23702543,78736.0,78726.0,0.0001]
[1744301767873,0.57702543,78736.0,78726.0,0.0001]
[1744301768070,0.702344,78727.0,78726.0,0.0001]
[1744301768267,0.89515238,78727.0,78726.0,0.0001]
[1744301768494,0.28840838,78727.0,78726.0,0.0001]
[1744301768657,0.25279836,78727.0,78726.0,0.12700758]
[1744301768860,0.20419836,78727.0,78726.0,0.13970958]
[1744301769061,9.8e-07,78727.0,78726.0,0.48224987]
[1744301769263,0.00012707,78736.0,78735.0,0.0127]
[1744301769522,0.00012707,78736.0,78735.0,0.39574324]
[1744301769723,0.253932,78761.0,78749.0,0.266667]
[1744301769882,0.19,78761.0,78760.0,0.266632]
[1744301770080,0.19,78761.0,78760.0,0.39353958]
[1744301771814,0.19,78761.0,78760.0,0.67633958]
[1744301774401,0.19,78761.0,78760.0,0.40970758]
[1744301774697,0.19,78761.0,78760.0,0.42240358]
[1744301776039,3.3e-07,78765.0,78764.0,0.62115985]
[1744301776190,3.3e-07,78765.0,78764.0,0.74806743]
[1744301777359,0.01000033,78765.0,78764.0,0.12690758]
[1744301777616,0.02269533,78765.0,78764.0,0.12690758]
[1744301777810,0.02269533,78765.0,78754.0,0.012697]
[1744301777811,0.253943,78758.0,78754.0,0.253954]
[1744301778010,3.3e-07,78765.0,78758.0,0.012697]
[1744301778217,3.3e-07,78765.0,78755.0,0.12690758]
[1744301778218,0.012696,78764.0,78755.0,0.12690758]
[1744301778449,0.012696,78761.0,78755.0,0.12690758]
[1744301778650,0.413933,78761.0,78757.0,0.012697]
[1744301778852,0.413933,78761.0,78756.0,0.253947]
[1744301778975,0.413933,78761.0,78756.0,0.38085458]
[1744301779349,0.426629,78761.0,78756.0,0.12690758]
[1744301779626,0.426629,78761.0,78749.0,0.012698]
[1744301779627,0.012697,78753.0,78742.0,0.253991]
[1744301779929,0.012697,78753.0,78744.0,0.012699]
[1744301779930,0.012698,78750.0,78744.0,0.012699]
[1744301780126,0.19,78750.0,78749.0,0.253968]
[1744301780362,0.19,78750.0,78749.0,0.39357358]
[1744301780901,0.23956785,78765.0,78759.0,0.253939]
[1744301781102,0.253924,78764.0,78758.0,0.012697]
[1744301781303,0.27801591,78763.0,78757.0,0.253944]
[1744301781526,0.27801591,78763.0,78756.0,0.012697]
[1744301781527,0.012696,78759.0,78753.0,0.253957]
[1744301781726,0.426638,78759.0,78752.0,0.266659]
[1744301781929,0.0127,78738.0,78728.0,1.3076075]
[1744301782160,0.2027,78738.0,78737.0,0.12690758]
[1744301782358,0.2027,78738.0,78728.0,1.3076075]
[1744301782359,0.2027,78738.0,78729.0,0.012701]
[1744301782614,0.19,78738.0,78736.0,0.266712]
[1744301782819,0.19,78738.0,78737.0,0.13960758]
[1744301783025,0.0473,78767.0,78753.0,0.266655]
[1744301783199,0.253878,78778.0,78753.0,0.266655]
[1744301783200,0.04,78770.0,78769.0,0.2666]
[1744301783410,0.19,78770.0,78769.0,0.2666]
[1744301784138,0.012696,78760.0,78753.0,0.12690758]
[1744301784352,0.16,78760.0,78754.0,0.39355958]
[1744301784525,0.16,78760.0,78759.0,0.012696]
[1744301784854,0.16,78760.0,78754.0,0.13960458]
[1744301784855,0.012697,78756.0,78754.0,0.12690758]
[1744301784988,0.266652,78754.0,78753.0,0.00042415]
[1744301785200,0.483552,78754.0,78753.0,0.00042415]
[1744301785624,0.823552,78754.0,78753.0,0.00042415]
[1744301785978,0.97199088,78754.0,78737.0,0.0001]
[1744301786182,0.651906,78738.0,78737.0,0.0001]
[1744301786384,0.98721358,78738.0,78737.0,0.00022733]
[1744301786587,0.920306,78738.0,78737.0,0.00022733]
[1744301786856,0.54312446,78738.0,78737.0,0.00022733]
[1744301787059,1.01003204,78738.0,78737.0,0.00022733]
[1744301787263,1.42144188,78738.0,78737.0,0.00022733]
[1744301787644,0.606724,78733.0,78732.0,5e-07]
[1744301787856,0.92363158,78733.0,78732.0,5e-07]
[1744301788060,0.95785988,78733.0,78732.0,5e-07]
[1744301788265,0.012702,78727.0,78726.0,1e-06]
[1744301788608,0.606788,78714.0,78713.0,6e-07]
[1744301788790,0.606788,78714.0,78685.0,0.0001678]
[1744301788791,0.012707,78692.0,78685.0,0.0001678]
[1744301789010,0.606882,78686.0,78685.0,8e-07]
[1744301789212,0.80970046,78686.0,78685.0,8e-07]
[1744301789379,0.8211103,78686.0,78685.0,8e-07]
[1744301790412,0.81436365,78686.0,78685.0,0.0001008]
[1744301791117,0.22706345,78686.0,78685.0,0.0001008]